[Event "GrandPrix_29.05"]
[Site "Chess.com"]
[Date "2020.05.29"]
[Round "4"]
[White "Glek_Igor"]
[Black "Nikame"]
[Result "0-1"]
[WhiteElo "2493"]
[BlackElo "2509"]
[TimeControl "600+2"]
[EndTime "10:59:16 PDT"]
[Termination "Nikame won on time"]

1. e4 {[%clk 0:10:01.9]} 1... d6 {[%clk 0:09:58.6]} 2. d4 {[%clk 0:10:01.6]}
2... Nf6 {[%clk 0:09:59.6]} 3. Nc3 {[%clk 0:10:01.8]} 3... e5 {[%clk 0:09:55]}
4. Nf3 {[%clk 0:09:49.2]} 4... Nbd7 {[%clk 0:09:44.3]} 5. Bc4 {[%clk 0:09:48.2]}
5... Be7 {[%clk 0:09:43.7]} 6. O-O {[%clk 0:09:49]} 6... O-O {[%clk 0:09:43.5]}
7. a4 {[%clk 0:09:47.4]} 7... c6 {[%clk 0:09:34.7]} 8. Be3 {[%clk 0:09:08.8]}
8... Nxe4 {[%clk 0:08:23.1]} 9. Bxf7+ {[%clk 0:06:36.1]} 9... Rxf7 {[%clk
0:08:23.4]} 10. Nxe4 {[%clk 0:06:36.3]} 10... exd4 {[%clk 0:08:14]} 11. Qxd4
{[%clk 0:05:49.5]} 11... Nf6 {[%clk 0:07:14.3]} 12. Ng3 {[%clk 0:04:31.3]} 12...
Nd5 {[%clk 0:07:06.3]} 13. c3 {[%clk 0:04:11.5]} 13... Bf6 {[%clk 0:07:02.7]}
14. Qd2 {[%clk 0:04:11.2]} 14... Nxe3 {[%clk 0:07:00.6]} 15. Qxe3 {[%clk
0:04:11.6]} 15... d5 {[%clk 0:06:48.4]} 16. Ne5 {[%clk 0:03:54.1]} 16... Re7
{[%clk 0:06:25.3]} 17. f4 {[%clk 0:03:54.4]} 17... Qb6 {[%clk 0:06:25.3]} 18.
Rae1 {[%clk 0:03:32.3]} 18... Bd7 {[%clk 0:05:29.3]} 19. Nh5 {[%clk 0:02:53.1]}
19... Bxe5 {[%clk 0:05:18.8]} 20. fxe5 {[%clk 0:02:51.1]} 20... Rae8 {[%clk
0:05:17.6]} 21. a5 {[%clk 0:01:31.2]} 21... Qxe3+ {[%clk 0:05:17.2]} 22. Rxe3
{[%clk 0:01:31.1]} 22... Rxe5 {[%clk 0:05:18.8]} 23. Rxe5 {[%clk 0:01:31.7]}
23... Rxe5 {[%clk 0:05:19.9]} 24. Nf4 {[%clk 0:01:29]} 24... Bf5 {[%clk
0:05:01.4]} 25. Kf2 {[%clk 0:01:22.3]} 25... g5 {[%clk 0:04:41.4]} 26. Nh5
{[%clk 0:01:16.6]} 26... Bg6 {[%clk 0:04:15.7]} 27. Nf6+ {[%clk 0:01:04.1]}
27... Kg7 {[%clk 0:04:10.6]} 28. Nd7 {[%clk 0:01:03.1]} 28... Re7 {[%clk
0:03:29.4]} 29. Nc5 {[%clk 0:01:02.6]} 29... b6 {[%clk 0:03:29]} 30. axb6 {[%clk
0:01:01.3]} 30... axb6 {[%clk 0:03:30.9]} 31. Na4 {[%clk 0:01:01.8]} 31... Ra7
{[%clk 0:02:57.3]} 32. b3 {[%clk 0:00:44.9]} 32... b5 {[%clk 0:02:19.3]} 33. Nc5
{[%clk 0:00:42.7]} 33... Ra2+ {[%clk 0:02:19.8]} 34. Kg3 {[%clk 0:00:32.3]}
34... Rc2 {[%clk 0:02:10.4]} 35. Rf3 {[%clk 0:00:25.9]} 35... h5 {[%clk
0:02:01.5]} 36. h4 {[%clk 0:00:11.7]} 36... gxh4+ {[%clk 0:01:58.9]} 37. Kxh4
{[%clk 0:00:10.9]} 37... Rxg2 {[%clk 0:01:59.2]} 38. Ne6+ {[%clk 0:00:11.2]}
38... Kh6 {[%clk 0:01:52]} 39. Rf6 {[%clk 0:00:11.2]} 39... Rg4+ {[%clk
0:01:48.8]} 40. Kh3 {[%clk 0:00:11.2]} 40... Kh7 {[%clk 0:01:34.3]} 41. b4
{[%clk 0:00:07.7]} 41... Rc4 {[%clk 0:01:25]} 42. Rf3 {[%clk 0:00:07.5]} 42...
Be4 {[%clk 0:01:19.3]} 43. Rf7+ {[%clk 0:00:08]} 43... Kg6 {[%clk 0:01:19.4]}
44. Rc7 {[%clk 0:00:06.7]} 44... Bf5+ {[%clk 0:01:20]} 0-1

[Event "GrandPrix_29.05"]
[Site "Chess.com"]
[Date "2020.05.29"]
[Round "4"]
[White "VladimirPotkin"]
[Black "Promacherr"]
[Result "0-1"]
[WhiteElo "1981"]
[BlackElo "2184"]
[TimeControl "600+2"]
[EndTime "10:59:22 PDT"]
[Termination "Promacherr won by resignation"]

1. c4 {[%clk 0:09:24.5]} 1... c6 {[%clk 0:10:00.2]} 2. Nf3 {[%clk 0:09:23.7]}
2... d5 {[%clk 0:10:01.3]} 3. d4 {[%clk 0:09:19.8]} 3... Nf6 {[%clk 0:10:01.8]}
4. e3 {[%clk 0:09:18.5]} 4... Bf5 {[%clk 0:10:02.1]} 5. Nc3 {[%clk 0:09:18.5]}
5... e6 {[%clk 0:10:03.4]} 6. Nh4 {[%clk 0:09:19]} 6... Bg6 {[%clk 0:10:04.6]}
7. Be2 {[%clk 0:09:15.9]} 7... Bd6 {[%clk 0:10:03.5]} 8. O-O {[%clk 0:09:13.4]}
8... Ne4 {[%clk 0:10:02]} 9. g3 {[%clk 0:09:07.8]} 9... Nd7 {[%clk 0:09:41]} 10.
Bf3 {[%clk 0:08:23.2]} 10... Ndf6 {[%clk 0:09:24.2]} 11. Nxg6 {[%clk 0:08:20.1]}
11... hxg6 {[%clk 0:09:16.5]} 12. Qc2 {[%clk 0:08:17.1]} 12... Nxc3 {[%clk
0:09:09.1]} 13. bxc3 {[%clk 0:08:19]} 13... dxc4 {[%clk 0:08:41.7]} 14. Qa4
{[%clk 0:07:51.4]} 14... Nd5 {[%clk 0:08:37]} 15. Qxc4 {[%clk 0:07:49.6]} 15...
Qf6 {[%clk 0:08:20.1]} 16. Bg2 {[%clk 0:07:45.6]} 16... Rh5 {[%clk 0:07:59.7]}
17. e4 {[%clk 0:07:43.4]} 17... Nb6 {[%clk 0:07:53.6]} 18. Qe2 {[%clk
0:07:38.6]} 18... Qe7 {[%clk 0:07:29.9]} 19. a4 {[%clk 0:07:38.2]} 19... a5
{[%clk 0:07:14.2]} 20. Be3 {[%clk 0:07:30.3]} 20... Bc7 {[%clk 0:07:12.3]} 21.
Rfb1 {[%clk 0:07:29.5]} 21... Ra6 {[%clk 0:05:48.7]} 22. c4 {[%clk 0:07:28.1]}
22... Bd8 {[%clk 0:05:41.4]} 23. c5 {[%clk 0:07:28.3]} 23... Nc8 {[%clk
0:05:37.9]} 24. Rxb7 {[%clk 0:07:28.6]} 24... Qxb7 {[%clk 0:05:32.3]} 25. Qd3
{[%clk 0:07:11]} 25... Ra8 {[%clk 0:04:47.4]} 26. Rb1 {[%clk 0:07:07.4]} 26...
Qd7 {[%clk 0:04:48.1]} 27. g4 {[%clk 0:06:45]} 27... Rh8 {[%clk 0:03:56.2]} 28.
d5 {[%clk 0:06:41.8]} 28... exd5 {[%clk 0:03:48.8]} 29. exd5 {[%clk 0:06:43.7]}
29... cxd5 {[%clk 0:02:50.2]} 30. c6 {[%clk 0:06:04.4]} 30... Qd6 {[%clk
0:02:43.7]} 31. h3 {[%clk 0:04:47.6]} 31... Bc7 {[%clk 0:02:44.2]} 32. Qc3
{[%clk 0:04:14.3]} 32... Ne7 {[%clk 0:02:13.9]} 33. Bc5 {[%clk 0:04:05.6]} 33...
Qe5 {[%clk 0:02:10.7]} 34. Qd2 {[%clk 0:03:20.3]} 34... Qf4 {[%clk 0:01:51]} 35.
Qe2 {[%clk 0:02:55]} 35... Qe5 {[%clk 0:01:42.3]} 36. Qd2 {[%clk 0:02:53.5]}
36... Bd6 {[%clk 0:01:38.8]} 37. Bd4 {[%clk 0:02:33]} 37... Qf4 {[%clk
0:01:33.6]} 38. Qc3 {[%clk 0:02:29.1]} 38... Rc8 {[%clk 0:01:29.9]} 39. Be3
{[%clk 0:01:54.4]} 39... Qh2+ {[%clk 0:01:20.1]} 40. Kf1 {[%clk 0:01:55.7]}
40... Rxc6 {[%clk 0:01:22]} 41. Qxg7 {[%clk 0:01:48.5]} 41... Qe5 {[%clk
0:01:22.4]} 42. Qxe5 {[%clk 0:01:25.2]} 42... Bxe5 {[%clk 0:01:24.3]} 43. Rb5
{[%clk 0:01:26.3]} 43... Bc7 {[%clk 0:01:08.7]} 44. Rb7 {[%clk 0:00:54.7]} 44...
Kd7 {[%clk 0:01:07.5]} 45. Bd2 {[%clk 0:00:46.8]} 45... Rb8 {[%clk 0:01:04.2]}
46. Ra7 {[%clk 0:00:47.9]} 46... Rc2 {[%clk 0:00:56.3]} 47. Bxa5 {[%clk
0:00:38.5]} 47... Rb1+ {[%clk 0:00:56.6]} 0-1

[Event "GrandPrix_29.05"]
[Site "Chess.com"]
[Date "2020.05.29"]
[Round "4"]
[White "guylevin1"]
[Black "titan013"]
[Result "0-1"]
[WhiteElo "2100"]
[BlackElo "2154"]
[TimeControl "600+2"]
[EndTime "10:59:24 PDT"]
[Termination "titan013 won on time"]

1. c4 {[%clk 0:09:59.8]} 1... e5 {[%clk 0:09:59.4]} 2. Nc3 {[%clk 0:10:00]} 2...
Nf6 {[%clk 0:10:00.1]} 3. Nf3 {[%clk 0:09:55.4]} 3... Nc6 {[%clk 0:09:59.3]} 4.
a3 {[%clk 0:09:56.5]} 4... d5 {[%clk 0:09:35]} 5. cxd5 {[%clk 0:09:56.1]} 5...
Nxd5 {[%clk 0:09:36.1]} 6. Qc2 {[%clk 0:09:57.6]} 6... Nxc3 {[%clk 0:09:35.8]}
7. dxc3 {[%clk 0:09:57]} 7... Bd6 {[%clk 0:09:37.1]} 8. e4 {[%clk 0:09:57.2]}
8... O-O {[%clk 0:09:37.1]} 9. Be3 {[%clk 0:09:56]} 9... Qe7 {[%clk 0:09:37]}
10. Be2 {[%clk 0:09:53.1]} 10... Bc5 {[%clk 0:09:32.1]} 11. Bxc5 {[%clk
0:09:38.6]} 11... Qxc5 {[%clk 0:09:33.1]} 12. O-O {[%clk 0:09:40]} 12... a5
{[%clk 0:09:06.2]} 13. Rfd1 {[%clk 0:08:31.4]} 13... Bg4 {[%clk 0:09:03.3]} 14.
Rd5 {[%clk 0:08:29.7]} 14... Qe7 {[%clk 0:08:54.7]} 15. Rad1 {[%clk 0:08:20.6]}
15... Be6 {[%clk 0:08:53.8]} 16. Rb5 {[%clk 0:08:16.7]} 16... a4 {[%clk
0:08:52.7]} 17. c4 {[%clk 0:07:02.8]} 17... Bg4 {[%clk 0:08:46.7]} 18. Rxb7
{[%clk 0:06:21.4]} 18... Bxf3 {[%clk 0:08:45.9]} 19. Bxf3 {[%clk 0:06:23.3]}
19... Nd4 {[%clk 0:08:42.5]} 20. Qc3 {[%clk 0:06:19.9]} 20... Rfd8 {[%clk
0:08:00.9]} 21. g3 {[%clk 0:05:18]} 21... Qd6 {[%clk 0:07:32]} 22. Kg2 {[%clk
0:05:15.4]} 22... c5 {[%clk 0:07:29.7]} 23. b4 {[%clk 0:04:41.3]} 23... axb3
{[%clk 0:05:29.4]} 24. Rxb3 {[%clk 0:04:40.9]} 24... g6 {[%clk 0:05:30.5]} 25.
Rb7 {[%clk 0:03:34.6]} 25... Ra6 {[%clk 0:04:42.2]} 26. Rdb1 {[%clk 0:02:48]}
26... Rda8 {[%clk 0:04:40.8]} 27. a4 {[%clk 0:02:37.6]} 27... Rxa4 {[%clk
0:04:34.4]} 28. R1b6 {[%clk 0:02:38.1]} 28... Qd8 {[%clk 0:04:32.1]} 29. Bg4
{[%clk 0:02:29.2]} 29... Qg5 {[%clk 0:04:01.6]} 30. Bd7 {[%clk 0:01:39]} 30...
Ra3 {[%clk 0:03:54.3]} 31. Qe1 {[%clk 0:01:36.4]} 31... Qh5 {[%clk 0:03:45.3]}
32. Rb8+ {[%clk 0:00:32.8]} 32... Kg7 {[%clk 0:03:43.7]} 33. Rxa8 {[%clk
0:00:33]} 33... Qf3+ {[%clk 0:03:44.3]} 34. Kh3 {[%clk 0:00:31.3]} 34... Rxa8
{[%clk 0:03:43.1]} 35. Bg4 {[%clk 0:00:31.1]} 35... Qd3 {[%clk 0:03:35.7]} 36.
Qe3 {[%clk 0:00:25.7]} 36... Qxe3 {[%clk 0:02:55.5]} 37. fxe3 {[%clk 0:00:26.2]}
37... Nc2 {[%clk 0:02:56.7]} 38. Rb7 {[%clk 0:00:19.9]} 38... Ra6 {[%clk
0:02:49.1]} 39. Rc7 {[%clk 0:00:15.8]} 39... Nxe3 {[%clk 0:02:49.4]} 40. Rxc5
{[%clk 0:00:16.8]} 40... Ra2 {[%clk 0:02:40.7]} 41. Bf3 {[%clk 0:00:17.2]} 41...
Kf6 {[%clk 0:02:29.8]} 42. Rc6+ {[%clk 0:00:16.6]} 42... Kg5 {[%clk 0:02:30.6]}
43. Rc7 {[%clk 0:00:16.1]} 43... h5 {[%clk 0:02:31]} 44. Rxf7 {[%clk 0:00:15]}
44... Ng4 {[%clk 0:02:32.1]} 45. Bg2 {[%clk 0:00:12.5]} 45... Nf2+ {[%clk
0:02:25]} 46. Rxf2 {[%clk 0:00:11.9]} 46... Rxf2 {[%clk 0:02:26.5]} 47. c5
{[%clk 0:00:11.6]} 47... Rc2 {[%clk 0:02:23.9]} 48. c6 {[%clk 0:00:08.4]} 48...
Rxc6 {[%clk 0:02:21.9]} 49. Bf3 {[%clk 0:00:09.9]} 49... Rc2 {[%clk 0:02:22.6]}
50. Bg2 {[%clk 0:00:10.4]} 50... Rd2 {[%clk 0:02:23.5]} 51. Bf3 {[%clk
0:00:11.5]} 51... Rf2 {[%clk 0:02:20.2]} 52. Bg2 {[%clk 0:00:12.5]} 52... Ra2
{[%clk 0:02:12.2]} 53. Bf3 {[%clk 0:00:13.1]} 53... Kh6 {[%clk 0:02:13.4]} 54.
g4 {[%clk 0:00:05.9]} 54... Kg5 {[%clk 0:02:11.4]} 55. gxh5 {[%clk 0:00:06.7]}
55... gxh5 {[%clk 0:02:11.9]} 56. Kg3 {[%clk 0:00:08.4]} 56... h4+ {[%clk
0:02:12.9]} 57. Kh3 {[%clk 0:00:09.8]} 57... Ra3 {[%clk 0:02:10.2]} 58. Kg2
{[%clk 0:00:09.5]} 58... Kf4 {[%clk 0:02:09.9]} 0-1

[Event "GrandPrix_29.05"]
[Site "Chess.com"]
[Date "2020.05.29"]
[Round "4"]
[White "AlexVanGog"]
[Black "Korchmar_Vasiliy"]
[Result "1-0"]
[WhiteElo "2294"]
[BlackElo "2041"]
[TimeControl "600+2"]
[EndTime "10:59:27 PDT"]
[Termination "AlexVanGog won by resignation"]

1. Nf3 {[%clk 0:10:01.9]} 1... d5 {[%clk 0:09:55.9]} 2. e3 {[%clk 0:10:03]} 2...
Nf6 {[%clk 0:09:53.4]} 3. c4 {[%clk 0:10:04.4]} 3... e6 {[%clk 0:09:51.7]} 4.
Nc3 {[%clk 0:10:05.3]} 4... b6 {[%clk 0:09:40.5]} 5. b3 {[%clk 0:10:00.1]} 5...
Bb7 {[%clk 0:09:39.1]} 6. Bb2 {[%clk 0:10:00.6]} 6... Nbd7 {[%clk 0:09:37.2]} 7.
Rc1 {[%clk 0:09:43.5]} 7... a6 {[%clk 0:09:38.1]} 8. cxd5 {[%clk 0:09:42.1]}
8... exd5 {[%clk 0:09:38.4]} 9. d4 {[%clk 0:09:42.5]} 9... Bd6 {[%clk
0:09:38.6]} 10. g3 {[%clk 0:09:43.7]} 10... O-O {[%clk 0:09:33.3]} 11. Bg2
{[%clk 0:09:44.7]} 11... Re8 {[%clk 0:08:59.6]} 12. O-O {[%clk 0:09:45]} 12...
c5 {[%clk 0:08:39.1]} 13. dxc5 {[%clk 0:09:01.2]} 13... bxc5 {[%clk 0:08:39.8]}
14. Nh4 {[%clk 0:09:01]} 14... Nb6 {[%clk 0:08:14.5]} 15. a4 {[%clk 0:08:48.3]}
15... Be5 {[%clk 0:07:31.1]} 16. Qd2 {[%clk 0:08:30.3]} 16... Rb8 {[%clk
0:06:36.5]} 17. Nf3 {[%clk 0:07:21.6]} 17... d4 {[%clk 0:04:22.8]} 18. exd4
{[%clk 0:07:04.5]} 18... cxd4 {[%clk 0:04:09.1]} 19. Ne2 {[%clk 0:06:49.7]}
19... d3 {[%clk 0:02:43.2]} 20. Nc3 {[%clk 0:05:49.8]} 20... Ne4 {[%clk
0:02:35.3]} 21. Nxe4 {[%clk 0:05:47.6]} 21... Bxb2 {[%clk 0:02:37.2]} 22. Qxb2
{[%clk 0:05:38.6]} 22... Bxe4 {[%clk 0:02:38.4]} 23. Qa3 {[%clk 0:04:18.4]}
23... Nd5 {[%clk 0:02:04.9]} 24. Rc4 {[%clk 0:04:13.1]} 24... Qf6 {[%clk
0:01:52]} 25. Qa1 {[%clk 0:02:03.1]} 25... Rxb3 {[%clk 0:00:58.3]} 26. Rxe4
{[%clk 0:01:32]} 26... Rxe4 {[%clk 0:00:54.4]} 27. Nd2 {[%clk 0:01:32.9]} 27...
Qxa1 {[%clk 0:00:16.4]} 28. Rxa1 {[%clk 0:01:32.4]} 28... Reb4 {[%clk
0:00:05.8]} 29. Nxb3 {[%clk 0:01:30.9]} 29... Nc3 {[%clk 0:00:07.1]} 30. Nd2
{[%clk 0:01:17.8]} 30... Rxa4 {[%clk 0:00:03.4]} 31. Rxa4 {[%clk 0:01:02.7]}
31... Nxa4 {[%clk 0:00:04.7]} 32. Kf1 {[%clk 0:01:03.2]} 32... Nc5 {[%clk
0:00:03.4]} 33. Nc4 {[%clk 0:01:03.1]} 33... Kf8 {[%clk 0:00:03.8]} 34. Ke1
{[%clk 0:01:04.4]} 34... Ke7 {[%clk 0:00:05.2]} 35. Kd2 {[%clk 0:01:06]} 35...
Ke6 {[%clk 0:00:05.2]} 36. Kc3 {[%clk 0:01:05.7]} 36... g5 {[%clk 0:00:05.7]}
37. Kd4 {[%clk 0:01:01.7]} 37... Nb3+ {[%clk 0:00:05.5]} 38. Kxd3 {[%clk
0:01:02.6]} 38... a5 {[%clk 0:00:06]} 39. Kc3 {[%clk 0:00:56.3]} 39... a4 {[%clk
0:00:06.4]} 40. Bh3+ {[%clk 0:00:54.2]} 40... Kd5 {[%clk 0:00:04.1]} 41. Nb6+
{[%clk 0:00:54.3]} 41... Ke4 {[%clk 0:00:05.6]} 42. Bg2+ {[%clk 0:00:53.1]}
42... Kf5 {[%clk 0:00:05.9]} 43. Nxa4 {[%clk 0:00:54.1]} 1-0

[Event "GrandPrix_29.05"]
[Site "Chess.com"]
[Date "2020.05.29"]
[Round "4"]
[White "Bulldog167"]
[Black "PresidenteMNE"]
[Result "0-1"]
[WhiteElo "2494"]
[BlackElo "2598"]
[TimeControl "600+2"]
[EndTime "10:59:29 PDT"]
[Termination "PresidenteMNE won on time"]

1. e4 {[%clk 0:10:01.9]} 1... d5 {[%clk 0:09:57.9]} 2. exd5 {[%clk 0:10:01.5]}
2... Nf6 {[%clk 0:09:59]} 3. d4 {[%clk 0:09:55.1]} 3... Bg4 {[%clk 0:09:58.8]}
4. Be2 {[%clk 0:09:55]} 4... Bxe2 {[%clk 0:09:57.8]} 5. Nxe2 {[%clk 0:09:47.7]}
5... Qxd5 {[%clk 0:09:58.6]} 6. O-O {[%clk 0:09:47.2]} 6... e6 {[%clk
0:09:56.4]} 7. Bf4 {[%clk 0:09:28.3]} 7... c6 {[%clk 0:09:34.3]} 8. Qd3 {[%clk
0:09:16]} 8... Nbd7 {[%clk 0:09:22]} 9. c4 {[%clk 0:09:06.4]} 9... Qe4 {[%clk
0:09:21]} 10. Qxe4 {[%clk 0:09:03.4]} 10... Nxe4 {[%clk 0:09:21.5]} 11. Nbc3
{[%clk 0:09:03.3]} 11... Nxc3 {[%clk 0:09:19.6]} 12. Nxc3 {[%clk 0:08:18.9]}
12... Bb4 {[%clk 0:09:09.7]} 13. Ne4 {[%clk 0:08:06]} 13... O-O {[%clk
0:08:56.4]} 14. c5 {[%clk 0:07:24.1]} 14... Ba5 {[%clk 0:08:33.1]} 15. Rfb1
{[%clk 0:06:26.9]} 15... Bd8 {[%clk 0:08:26.2]} 16. b4 {[%clk 0:06:17.3]} 16...
f5 {[%clk 0:07:19.6]} 17. Nd6 {[%clk 0:06:05.5]} 17... Bf6 {[%clk 0:07:14.3]}
18. Rd1 {[%clk 0:06:02]} 18... g5 {[%clk 0:07:03.8]} 19. Bc1 {[%clk 0:05:53.8]}
19... b6 {[%clk 0:06:54.5]} 20. Rb1 {[%clk 0:05:23.7]} 20... Rab8 {[%clk
0:06:05.9]} 21. Ba3 {[%clk 0:04:48.8]} 21... Be7 {[%clk 0:05:40.9]} 22. Nc4
{[%clk 0:04:44.1]} 22... Rfe8 {[%clk 0:05:17.6]} 23. Rb3 {[%clk 0:03:32.8]}
23... b5 {[%clk 0:04:59.3]} 24. Na5 {[%clk 0:03:28.4]} 24... Rbc8 {[%clk
0:05:00.3]} 25. Re3 {[%clk 0:03:18.5]} 25... Bf6 {[%clk 0:04:55.6]} 26. Bb2
{[%clk 0:02:56.2]} 26... Kf7 {[%clk 0:04:54]} 27. Nb7 {[%clk 0:02:53.5]} 27...
Be7 {[%clk 0:04:48.9]} 28. Rde1 {[%clk 0:02:54]} 28... Bf8 {[%clk 0:04:49.9]}
29. Rh3 {[%clk 0:02:13.2]} 29... h6 {[%clk 0:04:49.1]} 30. Ra3 {[%clk
0:02:01.3]} 30... Rc7 {[%clk 0:04:34.4]} 31. Na5 {[%clk 0:01:41.5]} 31... Nf6
{[%clk 0:04:24.5]} 32. f3 {[%clk 0:01:29.7]} 32... Nd5 {[%clk 0:04:21.9]} 33.
Rb3 {[%clk 0:01:31.1]} 33... h5 {[%clk 0:04:14.2]} 34. Ra1 {[%clk 0:01:31.2]}
34... e5 {[%clk 0:04:03.1]} 35. dxe5 {[%clk 0:01:10.2]} 35... Nxb4 {[%clk
0:04:03.5]} 36. Rxb4 {[%clk 0:01:08.1]} 36... Bxc5+ {[%clk 0:04:03.5]} 37. Rd4
{[%clk 0:01:09.6]} 37... Rxe5 {[%clk 0:03:51.7]} 38. Nb3 {[%clk 0:01:08.9]}
38... Bxd4+ {[%clk 0:03:41.1]} 39. Bxd4 {[%clk 0:01:10.8]} 39... Re2 {[%clk
0:03:37.1]} 40. Bf2 {[%clk 0:01:00]} 40... Rd7 {[%clk 0:03:14.5]} 41. Kf1 {[%clk
0:00:53.2]} 41... Rb2 {[%clk 0:03:09.7]} 42. h3 {[%clk 0:00:31.2]} 42... f4
{[%clk 0:02:56.6]} 43. Kg1 {[%clk 0:00:26.4]} 43... a5 {[%clk 0:02:42.8]} 44.
Nxa5 {[%clk 0:00:24.9]} 44... Rdd2 {[%clk 0:02:43.4]} 45. Rf1 {[%clk 0:00:26]}
45... c5 {[%clk 0:02:38.5]} 46. Nb3 {[%clk 0:00:26]} 46... Rdc2 {[%clk
0:02:37.4]} 47. Nxc5 {[%clk 0:00:25.1]} 47... Rxa2 {[%clk 0:02:33.7]} 48. Ne4
{[%clk 0:00:14.7]} 48... b4 {[%clk 0:02:28.1]} 49. Nxg5+ {[%clk 0:00:11.9]}
49... Kg6 {[%clk 0:02:28.3]} 50. Ne6 {[%clk 0:00:13]} 50... b3 {[%clk
0:02:25.6]} 51. Nxf4+ {[%clk 0:00:11.2]} 51... Kf5 {[%clk 0:02:23.9]} 52. Nd3
{[%clk 0:00:10.5]} 52... Rd2 {[%clk 0:02:16.3]} 53. Nc1 {[%clk 0:00:09.6]} 53...
Rxf2 {[%clk 0:01:41.5]} 0-1

[Event "GrandPrix_29.05"]
[Site "Chess.com"]
[Date "2020.05.29"]
[Round "4"]
[White "AlexPapasimakopoulos"]
[Black "KruHor"]
[Result "1/2-1/2"]
[WhiteElo "2388"]
[BlackElo "2484"]
[TimeControl "600+2"]
[EndTime "10:59:30 PDT"]
[Termination "Game drawn - insufficient material"]

1. d4 {[%clk 0:10:01.9]} 1... Nf6 {[%clk 0:09:59.2]} 2. c4 {[%clk 0:10:00.5]}
2... e6 {[%clk 0:09:59.5]} 3. Nc3 {[%clk 0:10:00.9]} 3... Bb4 {[%clk 0:09:59.7]}
4. Qc2 {[%clk 0:10:01.7]} 4... d6 {[%clk 0:09:59]} 5. a3 {[%clk 0:10:01]} 5...
Bxc3+ {[%clk 0:09:57.9]} 6. Qxc3 {[%clk 0:10:02.9]} 6... O-O {[%clk 0:09:58.1]}
7. f3 {[%clk 0:10:02.8]} 7... d5 {[%clk 0:09:57.8]} 8. Bg5 {[%clk 0:10:00.5]}
8... h6 {[%clk 0:09:24.4]} 9. Bh4 {[%clk 0:09:54]} 9... Nbd7 {[%clk 0:09:12.9]}
10. e3 {[%clk 0:09:52.5]} 10... Re8 {[%clk 0:09:08]} 11. b4 {[%clk 0:09:16.2]}
11... e5 {[%clk 0:08:49.3]} 12. dxe5 {[%clk 0:09:13.9]} 12... Nxe5 {[%clk
0:08:47.8]} 13. Rd1 {[%clk 0:09:08.2]} 13... Bd7 {[%clk 0:07:18]} 14. cxd5
{[%clk 0:08:24.1]} 14... Nxd5 {[%clk 0:06:08.8]} 15. Qd4 {[%clk 0:08:10]} 15...
Nxe3 {[%clk 0:04:48.5]} 16. Bxd8 {[%clk 0:08:04]} 16... Nc2+ {[%clk 0:04:48.9]}
17. Kf2 {[%clk 0:08:03]} 17... Nxd4 {[%clk 0:04:49.6]} 18. Bxc7 {[%clk
0:08:03.7]} 18... Rac8 {[%clk 0:03:55.6]} 19. Bxe5 {[%clk 0:07:55.6]} 19... Rc2+
{[%clk 0:03:55.8]} 20. Kg3 {[%clk 0:07:50.9]} 20... Nf5+ {[%clk 0:03:34.1]} 21.
Kh3 {[%clk 0:07:46.7]} 21... Bc8 {[%clk 0:03:00.8]} 22. Bd3 {[%clk 0:06:55.3]}
22... Ne3+ {[%clk 0:02:52.9]} 23. g4 {[%clk 0:06:55.8]} 23... Nxd1 {[%clk
0:02:29.2]} 24. Bxc2 {[%clk 0:06:56.7]} 24... Ne3 {[%clk 0:02:13.3]} 25. Bxg7
{[%clk 0:05:59.5]} 25... Kxg7 {[%clk 0:02:13.5]} 26. Be4 {[%clk 0:05:53.9]}
26... Nxg4 {[%clk 0:02:04.4]} 27. Kg3 {[%clk 0:05:54.7]} 27... Nf6 {[%clk
0:02:01.6]} 28. Kf4 {[%clk 0:05:50.9]} 28... Nxe4 {[%clk 0:01:56.5]} 29. fxe4
{[%clk 0:05:52]} 29... Rd8 {[%clk 0:01:45.4]} 30. Nf3 {[%clk 0:05:47.9]} 30...
Rd3 {[%clk 0:01:45.9]} 31. Rg1+ {[%clk 0:05:40.9]} 31... Kf8 {[%clk 0:01:46.3]}
32. Rc1 {[%clk 0:05:36.5]} 32... Be6 {[%clk 0:01:46]} 33. Rc7 {[%clk 0:05:31.7]}
33... Rxa3 {[%clk 0:01:45.3]} 34. Rxb7 {[%clk 0:05:32]} 34... a5 {[%clk
0:01:43]} 35. Rb8+ {[%clk 0:05:11.1]} 35... Ke7 {[%clk 0:01:42.6]} 36. b5 {[%clk
0:05:06.7]} 36... Kd6 {[%clk 0:01:37.4]} 37. b6 {[%clk 0:05:02.4]} 37... Rb3
{[%clk 0:01:34]} 38. Nd4 {[%clk 0:04:51.9]} 38... Rb1 {[%clk 0:01:26]} 39. Rd8+
{[%clk 0:04:32.2]} 39... Ke7 {[%clk 0:01:22.1]} 40. Nc6+ {[%clk 0:04:27.1]}
40... Kf6 {[%clk 0:01:22.8]} 41. e5+ {[%clk 0:04:27.2]} 41... Kg7 {[%clk
0:01:21.5]} 42. Rb8 {[%clk 0:04:21.1]} 42... a4 {[%clk 0:01:21.9]} 43. Nd4
{[%clk 0:03:34.1]} 43... Bd5 {[%clk 0:01:09.4]} 44. Rd8 {[%clk 0:03:33.8]} 44...
Bh1 {[%clk 0:00:54.8]} 45. Nf5+ {[%clk 0:03:26]} 45... Kh7 {[%clk 0:00:55]} 46.
Ng3 {[%clk 0:03:14]} 46... Bc6 {[%clk 0:00:39.9]} 47. Rd6 {[%clk 0:02:59.1]}
47... Rxb6 {[%clk 0:00:37.6]} 48. Nf5 {[%clk 0:02:59.6]} 48... a3 {[%clk
0:00:29.6]} 49. Rxh6+ {[%clk 0:02:56.6]} 49... Kg8 {[%clk 0:00:30]} 50. Ne7+
{[%clk 0:02:47.3]} 50... Kf8 {[%clk 0:00:29.3]} 51. Nxc6 {[%clk 0:02:45.9]}
51... a2 {[%clk 0:00:23.1]} 52. Rh8+ {[%clk 0:02:40.5]} 52... Kg7 {[%clk
0:00:23.8]} 53. Ra8 {[%clk 0:02:40.4]} 53... Rxc6 {[%clk 0:00:24.6]} 54. Rxa2
{[%clk 0:02:41.9]} 54... f6 {[%clk 0:00:22.6]} 55. Rg2+ {[%clk 0:01:55.5]} 55...
Kf7 {[%clk 0:00:23]} 56. Kf5 {[%clk 0:01:49]} 56... Rc5 {[%clk 0:00:19.5]} 57.
Re2 {[%clk 0:01:49.4]} 57... Rxe5+ {[%clk 0:00:19.9]} 58. Rxe5 {[%clk
0:01:50.9]} 58... fxe5 {[%clk 0:00:20.6]} 59. h4 {[%clk 0:01:52.4]} 59... Kg7
{[%clk 0:00:20.3]} 60. h5 {[%clk 0:01:53]} 60... Kh6 {[%clk 0:00:20.9]} 61. Kxe5
{[%clk 0:01:53.9]} 61... Kxh5 {[%clk 0:00:21.9]} 1/2-1/2